fUSD/lending_fUSD_20260427
["ID","MTS","AMOUNT","RATE_DAILY","PERIOD"]
[421264123,1777291841288,-433.0,0.0001024,2]
[421264124,1777291841298,-150.0,0.00010278,2]
[421264125,1777291841308,-3025.2680127,0.00010294,2]
[421264126,1777291841318,-488.10989542,0.00010305,2]
[421264127,1777291841328,-2000.0,0.00010316,2]
[421264128,1777291841337,-2000.0,0.00010316,2]
[421264129,1777291841348,-1362.51616083,0.00010316,2]
[421264130,1777291841360,-2000.0,0.00010316,2]
[421264131,1777291841370,-150.0,0.00010329,2]
[421264132,1777291841379,-150.0,0.00010329,2]
[421264133,1777291841389,-150.0,0.0001038,2]
[421264134,1777291841399,-322.536416,0.0001043,2]
[421264135,1777291841408,-322.536416,0.0001043,2]
[421264136,1777291841418,-322.536416,0.0001043,2]
[421264137,1777291841428,-322.53642,0.0001043,2]
[421264138,1777291841438,-33064.1878703,0.0001043,2]
[421264139,1777291841448,-150.0,0.00010431,2]
[421264140,1777291841457,-150.0,0.00010481,2]
[421264141,1777291841467,-41649.265166,0.00010486,2]
[421264142,1777291841476,-5920.544131,0.00010486,2]
[421264143,1777291841486,-198.751512,0.00010486,2]
[421264144,1777291841496,-3325.926059,0.00010508,2]
[421264145,1777291841505,-150.0,0.00010532,2]
[421264146,1777291841515,-812.97992432,0.00010567,2]
[421264147,1777291841524,-150.0,0.00010583,2]
[421264148,1777291841534,-52122.3626998,0.00010615,2]
[421264149,1777291841544,-150.0,0.00010634,2]
[421264150,1777291841553,-675.0285361,0.00010651,2]
[421264151,1777291841563,-168.101242,0.00010673,2]
[421264152,1777291841573,-500.0,0.00010673,2]
[421264153,1777291841583,-260.12998815,0.00010673,2]
[421264154,1777291841592,-500.0,0.00010673,2]
[421264155,1777291841601,-500.0,0.00010673,2]
[421264156,1777291841611,-594.02702041,0.00010673,2]
[421264157,1777291841620,-150.0,0.00010685,2]
[421264158,1777291841630,-150.0,0.00010685,2]
[421264159,1777291841639,-150.0,0.00010685,2]
[421264160,1777291841649,-150.0,0.00010685,2]
[421264161,1777291841659,-169.24096128,0.00010685,2]
[421264162,1777291841668,-150.0,0.00010685,2]
[421264163,1777291841678,-966.68645,0.0001069,2]
[421264164,1777291841690,-1593814.22028296,0.000107,2]
[421264165,1777291841700,-5796.65602943,0.000107,2]
[421264166,1777291841710,-241.06397217,0.000107,2]
[421264167,1777291841720,-700.0,0.000108,3]
[421264168,1777291841729,-7377.6175346,0.00010818,2]
[421264169,1777291841738,-151.0,0.00010853,2]
[421264170,1777291841748,-234.73943245,0.00010853,2]
[421264171,1777291841758,-934.60259387,0.00010864,2]
[421264172,1777291841768,-833.98167673,0.00010864,2]
[421264173,1777291841777,-673.2634335,0.00010864,2]
[421264174,1777291841787,-160.0,0.00010877,2]
[421264175,1777291841796,-4037.166315,0.00010877,2]
[421264176,1777291841806,-7914.33263,0.00010877,2]
[421264177,1777291841825,-160.0,0.00010877,2]
[421264178,1777291841834,-287.626835,0.00010877,2]
[421264179,1777291841844,-415.253671,0.00010877,2]
[421264180,1777291841854,-900.0,0.000109,3]
[421264181,1777291841864,-151.0,0.00010908,2]
[421264182,1777291841874,-500.0,0.00010959,2]
[421264183,1777291841884,-196.252927,0.00010959,2]
[421264184,1777291841893,-196.252927,0.00010959,2]
[421264185,1777291841902,-196.252927,0.00010959,2]
[421264186,1777291841912,-196.252927,0.00010959,2]
[421264187,1777291841921,-196.252927,0.00010959,2]
[421264188,1777291841931,-196.252927,0.00010959,2]
[421264189,1777291841940,-196.252927,0.00010959,2]
[421264190,1777291841949,-196.252927,0.00010959,2]
[421264191,1777291841959,-196.252927,0.00010959,2]
[421264192,1777291841969,-196.252927,0.00010959,2]
[421264193,1777291841979,-196.252927,0.00010959,2]
[421264194,1777291841988,-196.252927,0.00010959,2]
[421264195,1777291841998,-196.252927,0.00010959,2]
[421264196,1777291842007,-196.252927,0.00010959,2]
[421264197,1777291842017,-196.252927,0.00010959,2]
[421264198,1777291842026,-196.252927,0.00010959,2]
[421264199,1777291842035,-196.252927,0.00010959,2]
[421264200,1777291842045,-196.252927,0.00010959,2]
[421264201,1777291842054,-196.252927,0.00010959,2]
[421264202,1777291842064,-196.252926,0.00010959,2]
[421264203,1777291842073,-256.203121,0.00010959,2]
[421264204,1777291842083,-151.0,0.00010963,2]
[421264205,1777291842093,-504.21,0.00010989,2]
[421264206,1777291842102,-1189.09,0.00010989,2]
[421264207,1777291842112,-1359.14,0.00010989,2]
[421264208,1777291842121,-1557.09,0.00010989,2]
[421264209,1777291842131,-1330.63,0.00010989,2]
[421264210,1777291842141,-435.04,0.00010989,2]
[421264211,1777291842151,-1314.28,0.00010989,2]
[421264212,1777291842161,-1362.21,0.00010989,2]
[421264213,1777291842171,-3292.0,0.0001099,2]
[421264214,1777291842181,-176.26,0.00011002,2]
[421264215,1777291842191,-150.3922534,0.00011043,2]
[421264216,1777291842200,-11630.0711365,0.00011044,2]
[421264217,1777291842210,-7236.60075289,0.00011099,2]
[421264218,1777291842219,-7236.60075288,0.00011099,2]
[421264219,1777291842229,-7236.60075288,0.00011099,2]
[421264220,1777291842238,-7236.60075288,0.00011099,2]
[421264221,1777291842248,-7236.60075288,0.00011099,2]
[421264222,1777291842258,-7236.60075288,0.00011099,2]
[421264223,1777291842268,-7236.60075288,0.00011099,2]
[421264224,1777291842279,-26655.25961519,0.00011099,2]
[421264225,1777291842289,-26655.25961514,0.00011099,2]
[421264226,1777291842298,-26655.25961514,0.00011099,2]
[421264227,1777291842308,-26655.25961514,0.00011099,2]
[421264228,1777291842318,-26655.25961514,0.00011099,2]
[421264229,1777291842327,-26655.25961514,0.00011099,2]
[421264230,1777291842337,-26655.25961514,0.00011099,2]
[421264231,1777291842347,-7236.60075288,0.00011183,2]
[421264232,1777291842357,-26655.25961514,0.00011183,2]
[421264233,1777291842366,-436.6,0.0001122,2]
[421264234,1777291842376,-655.57,0.0001122,2]
[421264235,1777291842387,-908.4,0.0001122,2]
[421264236,1777291842400,-469.38,0.0001122,2]
[421264237,1777291842411,-205.66,0.0001122,2]
[421264238,1777291842421,-367.6,0.0001122,2]
[421264239,1777291842431,-668.22,0.0001122,2]
[421264240,1777291842695,-234.90755566,0.00011221,2]
[421264241,1777291842705,-1000.0,0.00011221,2]
[421264242,1777291842714,-1000.0,0.00011221,2]
[421264243,1777291842724,-150.0,0.00011374,2]
[421264244,1777291842732,-3325.926059,0.00011416,2]
[421264245,1777291842742,-3670.151195,0.00011421,2]
[421264246,1777291842751,-392.218412,0.00011421,2]
[421264247,1777291842761,-500.0,0.00011428,2]
[421264248,1777291842770,-7236.60075288,0.00011558,2]
[421264249,1777291842780,-26655.25961514,0.00011558,2]
[421264250,1777291842790,-314.49152187,0.0001158,2]
[421264251,1777291842799,-150.0,0.00011634,2]
[421264252,1777291842808,-150.0,0.00011767,2]
[421264253,1777291842817,-1500.0,0.00011768,2]
[421264254,1777291842826,-1621.04537997,0.00011768,2]
[421264255,1777291842835,-1100.0,0.000118,4]
[421264256,1777291842845,-1354.45606255,0.000119,3]
[421264257,1777291842854,-200.0,0.000119,4]
[421264258,1777291842863,-7236.60075288,0.00011933,2]
[421264259,1777291842872,-26655.25961514,0.00011933,2]
[421264260,1777291842881,-966.68645,0.0001199,2]
[421264261,1777291842891,-295.90885131,0.00011999,2]
[421264262,1777291842900,-400257.35864916,0.00012,2]
[421264263,1777291843113,-287.68959405,0.00012,2]
[421264264,1777291843125,-524.0,0.00012,2]
[421264265,1777291843139,-314.71089571,0.00012,2]
[421264267,1777291843151,-669.60661812,0.00012,2]
[421264269,1777291843589,-19215.62132233,0.00012,2]
[421264270,1777291843605,-310578.67715371,0.00012,2]
[421264279,1777291844963,-417.0,0.000106,2]
[421264280,1777291845289,-465.04512131,0.000106,2]
[421264285,1777291846652,-82.56973332,0.000106,2]
[421264286,1777291846661,-8036.01384108,0.00012,2]
[421264290,1777292097127,164.0,0.00011,45]
[421264291,1777292796102,-500.0,8.673e-05,2]
[421264292,1777292796124,-300.0,8.947e-05,2]
[421264293,1777292796146,-133.27066016,9.221e-05,2]
[421264294,1777292968085,-2071.93315,7.945e-05,2]
[421264295,1777293031465,-882.31924771,7.945e-05,2]
[421264296,1777293031521,-1979.84322829,7.945e-05,2]
[421264297,1777293031531,-300.0,9.54e-05,2]
[421264298,1777293031541,-340.13497463,0.00010024,2]
[421264299,1777293031551,-711.02179708,0.00010494,2]
[421264300,1777293031577,-721.2699,0.00010494,2]
[421264301,1777293031633,-2059.75297323,0.00010494,2]
[421264302,1777293031643,-114.74915003,0.000107,2]
[421264303,1777293031693,-1085.25084997,0.000107,2]
[421264304,1777293031702,-150.0,0.00010701,2]
[421264305,1777293031711,-150.0,0.00010701,2]
[421264306,1777293031720,-150.0,0.00010701,2]
[421264307,1777293031730,-150.0,0.00010701,2]
[421264308,1777293031739,-20.30674256,0.00010701,2]
[421264309,1777293031751,-129.69325744,0.00010701,2]
[421264310,1777293031760,-150.0,0.00010701,2]
[421264311,1777293031770,-177.0,0.00011,3]
[421264312,1777293031779,-34.89152196,0.00011098,2]
[421264313,1777293031791,-115.10847804,0.00011098,2]
[421264314,1777293031800,-150.0,0.00011494,2]
[421264315,1777293031810,-150.0,0.00011626,2]
[421264316,1777293031819,-150.99,0.00011626,2]
[421264317,1777293031828,-1405.45560451,0.00011626,2]
[421264318,1777293031839,-18642.23439549,0.00011626,2]
[421264319,1777293031849,-999.99,0.00011626,2]
[421264320,1777293031858,-49782.97,0.00011626,2]
[421264322,1777293031869,-2960.24,0.00011626,2]
[421264324,1777293031878,-342.0,0.00011627,2]
[421264326,1777293031888,-499.99,0.00011627,2]
[421264328,1777293031898,-6987.79033662,0.00011627,2]
[421264331,1777293031914,-482.0,0.00011627,2]
[421264339,1777293037711,-372.73608226,0.00011627,2]
[421264340,1777293037724,-1290.08569442,0.00011627,2]
[421264341,1777293037766,-867.3778867,0.00011627,2]
[421264342,1777293037776,-2592.6221133,0.00011627,2]
[421264343,1777293037788,-707.63958707,0.00011627,2]
[421264344,1777293037825,-767.54052114,0.00011627,2]
[421264345,1777293037988,-932.18777849,0.00011627,2]
[421264346,1777293037999,-4445.06,0.00011627,2]
[421264347,1777293038009,-299.99,0.00011627,2]
[421264348,1777293038019,-9999.99,0.00011627,2]
[421264349,1777293038029,-1204.0,0.00011642,2]
[421264350,1777293038039,-5419.65,0.00011642,2]
[421264351,1777293038049,-9999.99,0.00011642,2]
[421264352,1777293038059,-232.0,0.0001165,2]
[421264353,1777293038068,-1680.0,0.0001177,2]
[421264354,1777293038077,-561.285,0.00011799,2]
[421264355,1777293038087,-155.092,0.00011799,2]
[421264356,1777293038096,-29346.14,0.000118,2]
[421264357,1777293038106,-11461.20764745,0.000118,2]
[421264360,1777293040283,-808.0336,0.000118,2]
[421264361,1777293040295,-7645.42563137,0.000118,2]
[421264362,1777293040307,-2500.0,0.000118,2]
[421264363,1777293040317,-350.0,0.00011801,2]
[421264364,1777293040327,-1046.25553053,0.00011867,2]
[421264365,1777293040336,-1046.25553053,0.00011878,2]
[421264366,1777293040346,-1046.25553053,0.00011889,2]
[421264367,1777293040357,-150.0,0.0001189,2]
[421264368,1777293040366,-150.0,0.0001189,2]
[421264369,1777293040376,-154.60966813,0.0001189,2]
[421264370,1777293040385,-151.0,0.00011893,2]
[421264371,1777293040395,-151.0,0.00011893,2]
[421264372,1777293040404,-151.0,0.00011893,2]
[421264373,1777293040415,-151.0,0.00011893,2]
[421264374,1777293040425,-151.0,0.00011893,2]
[421264375,1777293040435,-151.0,0.00011893,2]
[421264376,1777293040444,-151.0,0.00011893,2]
[421264377,1777293040454,-151.0,0.00011893,2]
[421264379,1777293040463,-151.0,0.00011893,2]
[421264380,1777293040472,-151.0,0.00011893,2]
[421264381,1777293040481,-151.0,0.00011893,2]
[421264382,1777293040491,-300.0,0.00011899,2]
[421264383,1777293040500,-666.0,0.00011899,2]
[421264384,1777293040509,-300.0,0.00011899,2]
[421264386,1777293040519,-300.0,0.00011899,2]
[421264387,1777293040528,-300.0,0.00011899,2]
[421264388,1777293040537,-666.0,0.00011899,2]
[421264389,1777293040550,-174.68086836,0.00011899,2]
[421264390,1777293040560,-250.0,0.00011899,2]
[421264391,1777293040569,-222.99583796,0.00011899,2]
[421264392,1777293040579,-345.4057873,0.00011899,2]
[421264393,1777293040588,-248.06869687,0.00011899,2]
[421264394,1777293040598,-1222.19956246,0.000119,2]
[421264395,1777293040608,-5000.0,0.000119,2]
[421264396,1777293040617,-163009.0558927,0.000119,2]
[421264397,1777293040630,-393.63,0.000119,2]
[421264398,1777293040645,-389.415,0.000119,2]
[421264401,1777293045090,-327.365286,0.0001,2]
[421264402,1777293045147,-344.0,0.0001,2]
[421264403,1777293045203,-1828.634714,0.0001,2]
[421264404,1777293045213,-2015.26349475,0.000119,2]
[421264405,1777293045394,-316.220239,0.000119,2]
[421264406,1777293045846,-13529.95987027,0.000119,2]
[421264407,1777293046330,-8700.47494742,0.000119,2]
[421264419,1777293751903,158.32,0.000166,120]
[421264422,1777294012137,-150.0,0.000108,2]
[421264423,1777294012158,-13.58888051,0.000115,2]
[421264426,1777294231811,-335.31,0.000115,2]
[421264427,1777294231822,-1728.70844309,0.000115,2]
[421264428,1777294231834,-522.3926764,0.000115,2]
[421264429,1777294231843,-1100.72412016,0.00011501,2]
[421264430,1777294231869,-1399.27587984,0.00011501,2]
[421264431,1777294231878,-2294.98365495,0.00011503,2]
[421264432,1777294231925,-205.01634505,0.00011503,2]
[421264433,1777294231934,-1950.48714211,0.00011506,2]
[421264434,1777294231944,-16.28909711,0.00011547,2]
[421264435,1777294231980,-292.71090289,0.00011547,2]
[421264436,1777294231989,-300.0,0.00011549,2]
[421264437,1777294231998,-2574.4043734,0.0001155,2]
[421264438,1777294232007,-350.0,0.00011601,2]
[421264439,1777294232016,-300.0,0.00011656,2]
[421264440,1777294232025,-350.0,0.00011657,2]
[421264441,1777294232034,-7025.4979245,0.00011657,2]
[421264443,1777294232045,-1050.0,0.00011657,2]
[421264460,1777294237853,-325.56844042,0.00011657,2]
[421264461,1777294237962,-354.52710034,0.00011657,2]
[421264462,1777294238073,-400.0,0.00011657,2]
[421264463,1777294238144,-1793.2565623,0.00011657,2]
[421264464,1777294238211,-464.83997244,0.00011657,2]
[421264465,1777294238221,-542.9520259,0.00011657,2]
[421264466,1777294238237,-1503.17647077,0.00011657,2]
[421264467,1777294238281,-283.44977429,0.00011657,2]
[421264468,1777294238296,-1101.0,0.00011657,2]
[421264495,1777294240231,-2090.40897658,0.00011657,2]
[421264505,1777294242910,-1850.84275246,0.00011657,2]
[421264506,1777294242920,-24999.99,0.00011657,2]
[421264507,1777294242929,-150.99,0.00011657,2]
[421264508,1777294242938,-299.99,0.0001169,2]
[421264509,1777294242948,-3562.76,0.0001169,2]
[421264510,1777294242957,-999.99,0.0001169,2]
[421264511,1777294242967,-2204.14489784,0.000117,2]
[421264512,1777294242977,-150.0,0.00011748,2]
[421264513,1777294242986,-40041.92,0.00011749,2]
[421264514,1777294242995,-449.028,0.00011779,2]
[421264515,1777294243004,-27137.9554,0.0001178,2]
[421264516,1777294243014,-15046.8569,0.000118,2]
[421264517,1777294243024,-2822.50989932,0.000118,2]
[421264518,1777294243033,-350.0,0.00011822,2]
[421264519,1777294243042,-2500.0,0.0001185,2]
[421264520,1777294243051,-500.0,0.00011873,2]
[421264521,1777294243060,-500.0,0.00011873,2]
[421264522,1777294243070,-152.0,0.00011897,7]
[421264523,1777294243079,-151.0,0.00011897,2]
[421264524,1777294243088,-341.0,0.000119,5]
[421264525,1777294243098,-10000.0,0.000119,2]
[421264526,1777294243107,-2000.0,0.000119,2]
[421264527,1777294243117,-5000.0,0.000119,2]
[421264528,1777294243127,-500.0,0.000119,2]
[421264529,1777294243136,-1109.22490534,0.000119,2]
[421264530,1777294243146,-1854.49961357,0.000119,2]
[421264531,1777294243155,-250.0,0.00011901,2]
[421264532,1777294243164,-152.0,0.00011902,7]
[421264533,1777294243173,-200.0,0.00011903,2]
[421264534,1777294243182,-200.0,0.00011904,2]
[421264535,1777294243191,-200.0,0.00011904,2]
[421264536,1777294243200,-200.0,0.00011904,2]
[421264537,1777294243210,-200.0,0.00011904,2]
[421264538,1777294243220,-234.48108757,0.0001195,2]
[421264539,1777294243229,-1533.0,0.0001195,2]
[421264540,1777294243238,-1533.0,0.0001195,2]
[421264541,1777294243247,-152.0,0.0001195,2]
[421264542,1777294243256,-167.0,0.0001195,2]
[421264543,1777294243265,-1533.0,0.0001195,2]
[421264544,1777294243275,-152.0,0.0001195,2]
[421264545,1777294243284,-167.0,0.0001195,2]
[421264546,1777294243293,-1533.0,0.0001195,2]
[421264547,1777294243303,-152.0,0.0001195,2]
[421264548,1777294243312,-167.49940589,0.0001195,2]
[421264549,1777294243321,-1533.0,0.0001195,2]
[421264550,1777294243330,-152.0,0.0001195,2]
[421264552,1777294243339,-1533.0,0.0001195,2]
[421264553,1777294243349,-152.0,0.0001195,2]
[421264554,1777294243358,-1533.0,0.0001195,2]
[421264555,1777294243366,-152.0,0.0001195,2]
[421264556,1777294243375,-1533.0,0.0001195,2]
[421264557,1777294243384,-163.91787475,0.0001195,2]
[421264558,1777294243394,-1533.0,0.0001195,2]
[421264559,1777294243403,-1533.0,0.0001195,2]
[421264560,1777294243413,-1533.0,0.0001195,2]
[421264561,1777294243422,-1533.0,0.0001195,2]
[421264562,1777294243432,-1533.0,0.0001195,2]
[421264564,1777294243441,-1533.0,0.0001195,2]
[421264565,1777294243450,-1533.0,0.0001195,2]
[421264567,1777294243459,-1533.0,0.0001195,2]
[421264568,1777294243468,-1533.0,0.0001195,2]
[421264569,1777294243477,-1533.0,0.0001195,2]
[421264570,1777294243487,-1533.0,0.0001195,2]
[421264571,1777294243496,-1524.7258936,0.0001195,2]
[421264572,1777294243505,-151.0,0.0001195,2]
[421264573,1777294243514,-151.0,0.0001195,2]
[421264574,1777294243526,-151.0,0.0001195,2]
[421264575,1777294243535,-151.0,0.0001195,2]
[421264576,1777294243544,-241.26935684,0.0001195,2]
[421264577,1777294243553,-265.66247706,0.00011973,2]
[421264578,1777294243563,-500.0,0.00011973,2]
[421264579,1777294243572,-350.0,0.0001198,2]
[421264580,1777294243582,-1256.70812138,0.00011992,2]
[421264581,1777294243591,-151.0,0.00011993,2]
[421264582,1777294243600,-151.0,0.00011993,2]
[421264583,1777294243610,-151.0,0.00011993,2]
[421264584,1777294243621,-151.0,0.00011993,2]
[421264585,1777294243630,-151.0,0.00011993,2]
[421264586,1777294243639,-151.0,0.00011993,2]
[421264587,1777294243648,-151.0,0.00011993,2]
[421264588,1777294243658,-151.0,0.00011993,2]
[421264589,1777294243667,-151.0,0.00011993,2]
[421264590,1777294243677,-151.0,0.00011993,2]
[421264591,1777294243686,-151.0,0.00011993,2]
[421264592,1777294243696,-151.0,0.00011997,2]
[421264593,1777294243705,-326.0,0.00012,5]
[421264594,1777294243970,-108073.51110675,0.00012,2]
[421264595,1777294244044,-710.27726888,0.00012,2]
[421264596,1777294244060,-11679.81651685,0.00012,2]
[421264600,1777294246017,-299.11968399,0.00012,2]
[421264601,1777294246073,-378.804645,0.00012,2]
[421264602,1777294246128,-2792.4705,0.00012,2]
[421264613,1777295362159,-1069.20285405,8e-05,2]
[421264614,1777295362186,-254.0,8e-05,2]
[421264615,1777295362210,-3630.5838022,8e-05,2]
[421264616,1777295362235,-247.71328375,8.4e-05,2]
[421264617,1777295431859,-250.0,8.8e-05,2]
[421264618,1777295431868,-284.06656813,0.0001011,2]
[421264619,1777295431915,-215.93343187,0.0001011,2]
[421264620,1777295431925,-150.0,0.00010479,2]
[421264621,1777295431934,-150.0,0.00010771,2]
[421264622,1777295431943,-500.0,0.00010795,2]
[421264623,1777295431952,-150.0,0.00011062,2]
[421264624,1777295431962,-150.0,0.00011353,2]
[421264625,1777295431971,-350.0,0.00011545,2]
[421264626,1777295431980,-150.0,0.00011547,2]
[421264627,1777295431990,-465.0,0.00011547,2]
[421264628,1777295431999,-300.0,0.00011547,2]
[421264629,1777295432008,-1622.6871619,0.00011548,2]
[421264630,1777295432018,-2500.0,0.00011548,2]
[421264631,1777295432027,-5000.0,0.00011548,2]
[421264632,1777295432036,-2419.2941994,0.00011579,2]
[421264633,1777295432045,-674.56557419,0.00011638,2]
[421264634,1777295432055,-150.0,0.00011644,2]
[421264635,1777295432064,-359.222,0.00011647,2]
[421264636,1777295432074,-241.78405111,0.00011647,2]
[421264637,1777295432083,-299.24941198,0.00011647,2]
[421264638,1777295432093,-259.0,0.00011648,5]
[421264639,1777295432102,-36964.57561418,0.00011648,2]
[421264640,1777295432115,-52107.11148993,0.00011648,2]
[421264641,1777295432127,-208946.68107469,0.00011648,2]
[421264642,1777295432138,-188584.63131171,0.00011648,2]
[421264643,1777295432154,-2313.4,0.00011648,2]
[421264644,1777295432172,-268.0,0.00011648,2]
[421264695,1777295438042,-1620.0,0.00011448,2]
[421264696,1777295438255,-745.46632711,0.00011448,2]
[421264738,1777295440112,-967.50826585,0.00011448,2]
[421264739,1777295440219,-1425.82817633,0.00011448,2]
[421264740,1777295440437,-80259.64856989,0.00011448,2]
[421264741,1777295440449,-36659.33004994,0.00011448,2]
[421264757,1777295444823,-541.39864331,0.00011448,2]
[421264758,1777295444834,-810.70186814,0.00011448,2]
[421264759,1777295445046,-1579.0,0.00011448,2]
[421264852,1777295446480,-23148.77332132,0.00011448,2]
[421264853,1777295446534,-994.30618172,0.00011448,2]
[421264854,1777295446546,-2022.61147718,0.00011448,2]
[421264855,1777295446589,-3107.2,0.00011448,2]
[421264867,1777296632241,-394.0126,0.000102,2]
[421264868,1777296632252,-301.93962579,0.000102,2]
[421264869,1777296632264,-490.0,0.000102,2]
[421264870,1777296632293,-3887.0,0.000102,2]
[421264871,1777296632349,-313.13150344,0.000102,2]
[421264872,1777296632404,-696.09491183,0.000102,2]
[421264873,1777296632415,-539.72131076,0.000102,2]
[421264895,1777296638563,-321.1455917,0.000102,2]
[421264913,1777296640365,-266.21561357,0.000102,2]
[421264933,1777296643442,-6726.99596867,0.000102,2]
[421264934,1777296643501,-251.12159489,0.000102,2]
[421264935,1777296643611,-262.0,0.000102,2]
[421264936,1777296643704,-106.15728738,0.000102,2]
[421264940,1777296646783,-7558.46399197,0.000102,2]
[421264941,1777296646793,-150.0,0.000108,2]
[421264942,1777296646802,-150.0,0.000108,2]
[421264943,1777296646812,-791.23034,0.00011,2]
[421264944,1777296646821,-2925.30566803,0.00011,3]
[421264945,1777296646833,-406.31005313,0.00011,3]
[421264946,1777296646889,-1950.975,0.00011,3]
[421264947,1777296646901,-246.40927884,0.00011,3]
[421264948,1777296646910,-1409.59350766,0.000112,2]
[421264959,1777296787896,-157.653,0.00011024,2]
[421264960,1777296787922,-455.899,0.00011024,2]
[421264961,1777296787949,-1938.42419012,0.000112,2]
[421264962,1777296787975,-252.28671625,0.00011201,2]
[421264963,1777296788000,-300.0,0.00011203,2]
[421264964,1777296788024,-500.0,0.00011205,2]
[421264965,1777296788049,-153.45764577,0.00011245,2]
[421264966,1777296788073,-300.0,0.00011247,2]
[421264967,1777296788100,-150.0,0.00011247,2]
[421264968,1777296788127,-1419.85126661,0.00011248,2]
[421264969,1777296817865,253.16341542,0.00011247,2]
[421264970,1777296818129,64577.6691,0.00011148,2]
[421264971,1777296818789,163.69637829,0.00011247,2]
[421264972,1777296818819,500.0,0.00011247,2]
[421264973,1777296818847,465.72395313,0.00011247,2]
[421264974,1777296818882,500.0,0.00011247,2]
[421264975,1777296818926,500.0,0.00011247,2]
[421264976,1777296818958,500.0,0.00011247,2]
[421264977,1777296818993,500.0,0.00011247,2]
[421264978,1777296819026,500.0,0.00011247,2]
[421264979,1777296819061,500.0,0.00011247,2]
[421264980,1777296819096,500.0,0.00011247,2]
[421264981,1777296819124,258.6553891,0.00011247,2]
[421264982,1777296819158,200.0,0.00011247,2]
[421264983,1777296819193,500.0,0.00011247,2]
[421264984,1777296819239,500.0,0.00011247,2]
[421264985,1777296819273,500.0,0.00011247,2]
[421264986,1777296819308,500.0,0.00011247,2]
[421264987,1777296819346,500.0,0.00011247,2]
[421264988,1777296819385,500.0,0.00011247,2]
[421264989,1777296819428,500.0,0.00011247,2]
[421264990,1777296819463,500.0,0.00011247,2]
[421264991,1777296819497,500.0,0.00011247,2]
[421264992,1777296821486,-83959.51994531,0.00011248,2]
[421265002,1777297832566,-0.863695,0.0001011,2]
[421265003,1777297832578,-149.136305,0.0001011,2]
[421265004,1777297832588,-266.0,0.000107,3]
[421265005,1777297832598,-21.56270949,0.00011047,2]
[421265007,1777297832618,-128.43729051,0.00011047,2]
[421265009,1777297832629,-1200.0,0.00011047,2]
[421265011,1777297832639,-195.40615434,0.00011047,2]
[421265013,1777297832648,-500.0,0.00011047,2]
[421265016,1777297832659,-500.0,0.00011047,2]
[421265018,1777297832669,-605.34000786,0.00011047,2]
[421265020,1777297832678,-2500.0,0.00011048,2]
[421265022,1777297832687,-2517.40831098,0.00011048,2]
[421265024,1777297832697,-5000.0,0.00011048,2]
[421265026,1777297832706,-67289.81668839,0.00011048,2]
[421265028,1777297832718,-2029.30098551,0.00011048,2]
[421265036,1777297838676,-370.3005009,0.00011048,2]
[421265115,1777297840876,-1517.02387064,0.00011048,2]
[421265116,1777297841037,-312073.22385456,0.00011048,2]
[421265117,1777297841046,-2500.0,0.00011048,2]
[421265118,1777297841057,-2500.0,0.00011068,2]
[421265119,1777297841066,-2500.0,0.00011068,2]
[421265120,1777297841075,-3013.21592802,0.00011099,2]
[421265121,1777297841085,-177.21439079,0.00011099,2]
[421265122,1777297841094,-209.47458839,0.00011099,2]
[421265123,1777297841104,-772.51861583,0.000111,2]
[421265124,1777297841113,-2082.12966373,0.000111,2]
[421265125,1777297841125,-1731.14700276,0.000111,2]
[421265126,1777297841136,-1852.13393469,0.000111,2]